bitfinex-derivatives/quotes_BTCF0:USTF0_20250609
["timestamp","ask_amount","ask_price","bid_price","bid_amount"]
[1749434020609,0.50499353,105550.0,105540.0,0.755877]
[1749434020811,0.50499353,105550.0,105540.0,1.116677]
[1749434021006,0.50499353,105550.0,105540.0,1.18939503]
[1749434021313,0.40751672,105550.0,105540.0,1.43201016]
[1749434021516,0.40751672,105550.0,105540.0,1.16711015]
[1749434021706,0.40751672,105550.0,105540.0,0.96073729]
[1749434021908,0.40751672,105550.0,105540.0,0.94646655]
[1749434022108,0.40751672,105550.0,105540.0,0.96073395]
[1749434022407,0.40751672,105550.0,105540.0,1.15283941]
[1749434022611,0.40751672,105550.0,105540.0,1.01930719]
[1749434022812,0.40751672,105550.0,105540.0,1.00492658]
[1749434023014,0.40751672,105550.0,105540.0,1.01930719]
[1749434023712,0.40751672,105550.0,105540.0,0.97095679]
[1749434023908,0.40751672,105550.0,105540.0,0.95637618]
[1749434024112,0.40751672,105550.0,105540.0,0.97196487]
[1749434024313,0.46951672,105550.0,105540.0,0.97196487]
[1749434024708,0.47357332,105550.0,105540.0,0.97196485]
[1749434025210,0.47357332,105550.0,105540.0,0.85451753]
[1749434025419,0.47357332,105550.0,105540.0,0.97196485]
[1749434025716,0.46951672,105550.0,105540.0,0.97196457]
[1749434025916,0.46951672,105550.0,105540.0,0.95757618]
[1749434026425,0.46951672,105550.0,105540.0,0.971966]
[1749434027010,0.46951672,105550.0,105540.0,0.85451868]
[1749434027215,0.46951672,105550.0,105540.0,0.95757618]
[1749434027417,0.46951672,105550.0,105540.0,0.97198248]
[1749434029016,0.46951672,105550.0,105540.0,0.95757618]
[1749434029319,0.46951672,105550.0,105540.0,0.971985]
[1749434029519,0.46951672,105550.0,105540.0,0.95757618]
[1749434029916,0.46951672,105550.0,105540.0,0.971985]
[1749434030420,0.46951672,105550.0,105540.0,0.97198511]
[1749434030619,0.46951672,105550.0,105540.0,0.95757618]
[1749434031322,0.46951672,105550.0,105540.0,0.97198348]
[1749434031616,0.46951672,105550.0,105540.0,0.95757618]
[1749434031820,0.46951672,105550.0,105540.0,0.97199548]
[1749434032520,0.46951672,105550.0,105540.0,0.95757618]
[1749434032722,0.46951672,105550.0,105540.0,0.97200523]
[1749434032909,0.46951672,105550.0,105540.0,0.95757618]
[1749434033114,0.46951672,105550.0,105540.0,0.97200523]
[1749434035324,0.46951672,105550.0,105540.0,1.11991256]
[1749434035524,0.46951672,105550.0,105540.0,0.9454397]
[1749434036023,0.46951672,105550.0,105540.0,0.94543989]
[1749434036323,0.46951672,105550.0,105540.0,0.93101065]
[1749434036516,0.46951672,105550.0,105540.0,0.94543989]
[1749434036710,0.46951672,105550.0,105540.0,0.94543869]
[1749434037115,0.46951672,105550.0,105540.0,0.94543909]
[1749434037316,0.46951672,105550.0,105540.0,1.15181195]
[1749434037517,0.46951672,105550.0,105540.0,1.00390524]
[1749434038826,0.46951672,105550.0,105540.0,0.98947618]
[1749434039425,0.46951672,105550.0,105540.0,1.0039056]
[1749434040221,0.46951672,105550.0,105540.0,1.13739267]
[1749434040420,0.46951672,105550.0,105540.0,0.94544944]
[1749434040723,0.46951672,105550.0,105540.0,0.93101981]
[1749434041127,0.46951672,105550.0,105540.0,0.94544944]
[1749434041329,0.46951672,105550.0,105540.0,0.93101981]
[1749434041922,0.46951672,105550.0,105540.0,0.94544944]
[1749434042326,0.36883672,105550.0,105540.0,0.22944612]
[1749434042525,1.26343672,105550.0,105540.0,0.41732752]
[1749434042718,1.26343672,105550.0,105540.0,0.41736609]
[1749434042918,1.26343672,105550.0,105540.0,0.1973598]
[1749434043117,1.26343672,105550.0,105540.0,0.21093944]
[1749434043320,1.26343672,105550.0,105540.0,0.21094927]
[1749434043728,1.26343672,105550.0,105540.0,0.1965478]
[1749434043925,1.26343672,105550.0,105540.0,0.19755913]
[1749434044324,1.26343672,105550.0,105540.0,0.16535913]
[1749434044628,1.29673672,105550.0,105540.0,0.15113335]
[1749434044817,1.29673672,105550.0,105540.0,0.16555897]
[1749434045128,1.29673672,105550.0,105540.0,0.15113335]
[1749434045332,1.29673672,105550.0,105540.0,0.16555943]
[1749434045528,1.29673672,105550.0,105540.0,0.15113335]
[1749434045729,1.29673672,105550.0,105540.0,0.16555942]
[1749434046130,1.1792894,105550.0,105540.0,0.16555942]
[1749434046433,1.29673672,105550.0,105540.0,0.15113335]
[1749434046624,1.29673672,105550.0,105540.0,0.16555521]
[1749434047025,1.29673672,105550.0,105540.0,0.15113335]
[1749434047224,1.29673672,105550.0,105540.0,0.16561992]
[1749434047426,1.29673672,105550.0,105540.0,0.16561998]
[1749434047723,1.41418404,105550.0,105540.0,0.16561998]
[1749434047928,1.41418404,105550.0,105540.0,0.13577339]
[1749434048128,1.45360073,105550.0,105540.0,0.13597339]
[1749434048336,1.45360073,105550.0,105540.0,0.01759954]
[1749434048531,1.45360073,105550.0,105540.0,0.01759953]
[1749434048727,1.45360073,105550.0,105540.0,0.0032]
[1749434048933,1.45360073,105550.0,105540.0,0.01779952]
[1749434049127,1.33615341,105550.0,105540.0,0.01779952]
[1749434049330,1.29673672,105550.0,105540.0,0.01779952]
[1749434049731,1.29673672,105550.0,105540.0,0.0032]
[1749434049930,1.29673672,105550.0,105540.0,0.01779087]
[1749434050237,1.29673672,105550.0,105540.0,0.01779086]
[1749434050425,1.29673672,105550.0,105540.0,0.0032]
[1749434050627,1.29901672,105550.0,105540.0,0.0032]
[1749434050831,1.29901672,105550.0,105540.0,0.01779067]
[1749434051226,1.31656745,105550.0,105540.0,0.01779067]
[1749434051539,1.31656745,105550.0,105540.0,0.13607743]
[1749434051738,1.31656745,105550.0,105540.0,0.12148676]
[1749434052338,1.31656745,105550.0,105540.0,0.13622829]
[1749434052538,1.31656745,105550.0,105540.0,0.16792829]
[1749434052839,1.31656745,105550.0,105540.0,0.13622829]
[1749434053438,1.31656745,105550.0,105540.0,0.12148676]
[1749434053638,1.31656745,105550.0,105540.0,0.13624145]
[1749434053839,1.19912013,105550.0,105540.0,0.13624145]
[1749434054139,1.19912013,105550.0,105540.0,0.01143]
[1749434054327,1.19912013,105550.0,105540.0,0.02598498]
[1749434054527,1.31656745,105550.0,105540.0,0.02598498]
[1749434054732,1.43401477,105550.0,105540.0,0.02618192]
[1749434055031,1.43807137,105550.0,105540.0,0.02618131]
[1749434055542,1.32062405,105550.0,105540.0,0.01143]
[1749434055751,1.43807137,105550.0,105540.0,0.02618128]
[1749434056048,1.20317673,105550.0,105540.0,0.02618128]
[1749434056243,1.32062405,105550.0,105540.0,0.02618128]
[1749434056443,1.32062405,105550.0,105540.0,0.02617999]
[1749434056648,1.43807137,105550.0,105540.0,0.02617999]
[1749434056846,1.43807137,105550.0,105540.0,0.01143]
[1749434057036,1.43401477,105550.0,105540.0,0.01143]
[1749434057447,1.43401477,105550.0,105540.0,0.02617649]
[1749434057644,1.43401477,105550.0,105540.0,0.02479125]
[1749434057844,1.43401477,105550.0,105540.0,0.03953787]
[1749434058047,1.43401477,105550.0,105540.0,0.06182787]
[1749434058853,1.43401477,105550.0,105540.0,0.06183016]
[1749434059043,1.43401477,105550.0,105540.0,0.04846884]
[1749434059250,1.43401477,105550.0,105540.0,0.0618305]
[1749434059446,1.4732634,105550.0,105540.0,0.04846884]
[1749434059650,1.4732634,105550.0,105540.0,0.06183051]
[1749434059951,1.43401477,105550.0,105540.0,0.06163051]
[1749434060148,1.4773154,105550.0,105540.0,0.04708163]
[1749434060346,1.4773154,105550.0,105540.0,0.06183122]
[1749434060544,1.4773154,105550.0,105540.0,0.06186478]
[1749434060754,1.4773154,105550.0,105540.0,0.04846959]
[1749434061053,1.4773154,105550.0,105540.0,0.06055585]
[1749434061248,1.4732588,105550.0,105540.0,0.06186496]
[1749434061446,1.4732588,105550.0,105540.0,0.07535622]
[1749434061642,1.4732588,105550.0,105540.0,0.06191602]
[1749434061849,1.4732588,105550.0,105540.0,0.0753557]
[1749434062445,0.189407,105540.0,105530.0,0.03966889]
[1749434062652,0.88060164,105540.0,105530.0,0.03966889]
[1749434063155,0.88060164,105540.0,105530.0,0.03986889]
[1749434063467,0.88060164,105540.0,105530.0,0.04086889]
[1749434065457,0.88060164,105540.0,105530.0,0.04186889]
[1749434070954,0.88060164,105540.0,105530.0,0.04166889]
[1749434071763,0.88060164,105540.0,105530.0,0.04186889]
[1749434072260,0.88060164,105540.0,105530.0,0.16015565]
[1749434073758,0.68483805,105540.0,105530.0,0.04186889]
[1749434073953,0.88060164,105540.0,105530.0,0.04186889]
[1749434074456,0.88060164,105540.0,105530.0,0.07409842]
[1749434074657,0.88060164,105540.0,105530.0,0.07409839]
[1749434075353,0.88060164,105540.0,105530.0,0.0740984]
[1749434075354,0.91973703,105540.0,105530.0,0.0740984]
[1749434075957,0.65214239,105540.0,105530.0,0.0740984]
[1749434076154,0.65214239,105540.0,105530.0,0.1058984]
[1749434076359,0.76958971,105540.0,105530.0,0.09118464]
[1749434076557,0.65214239,105540.0,105530.0,0.07772549]
[1749434076760,0.76958971,105540.0,105530.0,0.09118466]
[1749434076965,0.76958971,105540.0,105530.0,0.10594513]
[1749434077663,0.88703703,105540.0,105530.0,0.10594513]
[1749434077952,0.88703703,105540.0,105530.0,0.10598575]
[1749434078858,1.31675703,105540.0,105530.0,0.09252724]
[1749434079162,1.31675703,105540.0,105530.0,0.10598571]
[1749434079466,1.31675703,105540.0,105530.0,0.10598547]
[1749434079763,1.31675703,105540.0,105530.0,0.10598755]
[1749434079963,1.31675703,105540.0,105530.0,0.0911858]
[1749434080167,1.31675703,105540.0,105530.0,0.10598755]
[1749434080465,1.31675703,105540.0,105530.0,0.09252724]
[1749434080655,1.31675703,105540.0,105530.0,0.10598755]
[1749434081261,1.19930971,105540.0,105530.0,0.10598755]
[1749434081462,1.19930971,105540.0,105530.0,0.07772549]
[1749434081657,1.19930971,105540.0,105530.0,0.091187]
[1749434082061,1.19930971,105540.0,105530.0,0.07772549]
[1749434082263,1.19930971,105540.0,105530.0,0.09252724]
[1749434082463,1.19930971,105540.0,105530.0,0.10598874]
[1749434083161,1.19930971,105540.0,105530.0,0.10598882]
[1749434083866,1.19930971,105540.0,105530.0,0.09118707]
[1749434084165,1.19930971,105540.0,105530.0,0.09252724]
[1749434084560,0.83850971,105540.0,105530.0,0.09118707]
[1749434084866,1.19930971,105540.0,105530.0,0.09118812]
[1749434085265,0.65826239,105540.0,105530.0,0.22343719]
[1749434085467,1.20378239,105540.0,105530.0,0.61897281]
[1749434085669,1.28209432,105540.0,105530.0,0.73725957]
[1749434085867,0.723487,105540.0,105530.0,0.94148465]
[1749434086061,1.165367,105540.0,105530.0,0.95633116]
[1749434086256,0.619127,105540.0,105530.0,0.78170603]
[1749434086570,1.28277432,105540.0,105530.0,0.76690616]
[1749434086859,1.28277432,105540.0,105530.0,0.78170596]
[1749434087067,1.28277432,105540.0,105530.0,0.76690616]
[1749434087661,1.28277432,105540.0,105530.0,0.78170602]
[1749434087964,1.28277432,105540.0,105530.0,0.75203576]
[1749434089470,1.28277432,105540.0,105530.0,1.04893576]
[1749434090170,1.28277432,105540.0,105530.0,1.04893579]
[1749434090364,1.28277432,105540.0,105530.0,1.03413591]
[1749434090568,1.28277432,105540.0,105530.0,0.6881358]
[1749434090765,1.28277432,105540.0,105530.0,0.68813593]
[1749434091071,1.28277432,105540.0,105530.0,0.68794484]
[1749434091868,1.28277432,105540.0,105530.0,0.68794471]
[1749434092166,1.28277432,105540.0,105530.0,0.67333591]
[1749434092471,1.28277432,105540.0,105530.0,0.67313591]
[1749434092667,1.28277432,105540.0,105530.0,0.55568859]
[1749434092668,1.64357432,105540.0,105530.0,0.55568859]
[1749434092868,1.64357432,105540.0,105530.0,0.5704039]
[1749434093173,1.64357432,105540.0,105530.0,0.57060398]
[1749434093371,1.67467432,105540.0,105530.0,0.57040398]
[1749434093666,1.67467432,105540.0,105530.0,0.55588859]
[1749434094065,1.67467432,105540.0,105530.0,0.5706007]
[1749434094266,1.67467432,105540.0,105530.0,0.55588859]
[1749434094473,1.67467432,105540.0,105530.0,0.5384007]
[1749434094674,1.70727432,105540.0,105530.0,0.5384007]
[1749434094967,1.70727432,105540.0,105530.0,0.52368859]
[1749434095164,1.70727432,105540.0,105530.0,0.5384007]
[1749434095364,1.70727432,105540.0,105530.0,0.2415007]
[1749434095571,1.70727432,105540.0,105530.0,0.22253199]
[1749434095966,1.70727432,105540.0,105530.0,0.22273199]
[1749434096274,1.82472164,105540.0,105530.0,0.23744352]
[1749434096568,1.82472164,105540.0,105530.0,0.22273199]
[1749434097074,1.82472164,105540.0,105530.0,0.23744344]
[1749434097266,1.82472164,105540.0,105530.0,0.22273199]
[1749434097870,1.82472164,105540.0,105530.0,0.23753316]
[1749434098169,1.82472164,105540.0,105530.0,0.23742005]
[1749434098473,1.82472164,105540.0,105530.0,0.22273199]
[1749434098774,1.82472164,105540.0,105530.0,0.19193199]
[1749434099072,1.82472164,105540.0,105530.0,0.17482256]
[1749434099277,1.85542164,105540.0,105530.0,0.16013199]
[1749434099575,1.85542164,105540.0,105530.0,0.17482256]
[1749434099770,1.85542164,105540.0,105530.0,0.16013199]
[1749434099968,1.85542164,105540.0,105530.0,0.17482256]
[1749434100475,1.85542164,105540.0,105530.0,0.16013199]
[1749434100666,1.85542164,105540.0,105530.0,0.17481432]
[1749434100871,1.85542164,105540.0,105530.0,0.16013199]
[1749434101373,1.85542164,105540.0,105530.0,0.17479273]
[1749434101576,1.85542164,105540.0,105530.0,0.16013199]
[1749434101770,1.85542164,105540.0,105530.0,0.17479273]
[1749434102573,1.85542164,105540.0,105530.0,0.16013199]
[1749434102961,1.85542164,105540.0,105530.0,0.17479043]
[1749434103166,1.85542164,105540.0,105530.0,0.16013199]
[1749434103672,1.85542164,105540.0,105530.0,0.17479043]
[1749434103877,1.85542164,105540.0,105530.0,0.16013199]
[1749434104974,1.85542164,105540.0,105530.0,0.20768947]
[1749434105176,1.85542164,105540.0,105530.0,0.19303199]
[1749434105778,1.85542164,105540.0,105530.0,0.2076888]
[1749434105975,1.85542164,105540.0,105530.0,0.19303199]
[1749434106177,1.85542164,105540.0,105530.0,0.2076888]
[1749434106373,1.85542164,105540.0,105530.0,0.19303199]
[1749434106573,1.85542164,105540.0,105530.0,0.2076888]
[1749434106974,1.85542164,105540.0,105530.0,0.19303199]
[1749434107175,1.85542164,105540.0,105530.0,0.20768852]
[1749434107482,1.85542164,105540.0,105530.0,0.20767746]
[1749434108685,1.85542164,105540.0,105530.0,0.19303199]
[1749434108883,1.85542164,105540.0,105530.0,0.20767746]
[1749434109079,1.49462164,105540.0,105530.0,0.19303199]
[1749434109280,1.85542164,105540.0,105530.0,0.19303199]
[1749434109480,1.85542164,105540.0,105530.0,0.20767771]
[1749434110083,1.85542164,105540.0,105530.0,0.19303199]
[1749434110392,1.85542164,105540.0,105530.0,0.20767771]
[1749434111074,1.85542164,105540.0,105530.0,0.19303199]
[1749434111283,1.19177432,105540.0,105530.0,0.19303199]
[1749434111483,1.85330164,105540.0,105530.0,0.19303199]
[1749434112387,1.85330164,105540.0,105530.0,0.20741191]
[1749434112587,1.85330164,105540.0,105530.0,0.19303199]
[1749434113082,1.85330164,105540.0,105530.0,0.20740595]
[1749434113278,1.85330164,105540.0,105530.0,0.19303199]
[1749434113482,1.85330164,105540.0,105530.0,0.20740595]
[1749434113787,1.85330164,105540.0,105530.0,0.19303199]
[1749434114083,1.85330164,105540.0,105530.0,0.20740591]
[1749434114888,1.85330164,105540.0,105530.0,0.19303199]
[1749434115089,1.85330164,105540.0,105530.0,0.20740573]
[1749434115589,1.85330164,105540.0,105530.0,0.19303199]
[1749434115790,1.85330164,105540.0,105530.0,0.20740573]
[1749434115992,1.85330164,105540.0,105530.0,0.19303199]
[1749434116193,1.85330164,105540.0,105530.0,0.20740568]
[1749434116491,1.85330164,105540.0,105530.0,0.35533903]
[1749434116680,1.85330164,105540.0,105530.0,0.35533917]
[1749434117079,1.85330164,105540.0,105530.0,0.32243917]
[1749434117391,1.85330164,105540.0,105530.0,0.17430589]
[1749434117591,1.618407,105540.0,105530.0,0.17351043]
[1749434117788,1.85330164,105540.0,105530.0,0.18788091]
[1749434117981,1.85330164,105540.0,105530.0,0.17450247]
[1749434118179,1.85330164,105540.0,105530.0,0.18788624]
[1749434118787,1.49250164,105540.0,105530.0,0.18788624]
[1749434118990,1.85330164,105540.0,105530.0,0.18788624]
[1749434119295,1.85330164,105540.0,105530.0,0.17449892]
[1749434119494,1.85330164,105540.0,105530.0,0.1878827]
[1749434119884,1.85330164,105540.0,105530.0,0.173526]
[1749434120795,1.85330164,105540.0,105530.0,0.0552629]
[1749434120986,1.85330164,105540.0,105530.0,0.05525629]
[1749434121692,1.85330164,105540.0,105530.0,0.04186889]
[1749434122796,1.85330164,105540.0,105530.0,0.16024736]
[1749434123696,1.89258984,105540.0,105530.0,0.16024736]
[1749434123897,1.85330164,105540.0,105530.0,0.16024736]
[1749434124298,1.85330164,105540.0,105530.0,0.04186889]
[1749434127995,1.618407,105540.0,105530.0,0.04186889]
[1749434128297,1.85330164,105540.0,105530.0,0.04186889]
[1749434131896,1.85330164,105540.0,105530.0,0.04166889]
[1749434132094,1.85330164,105540.0,105530.0,0.04186889]
[1749434133301,1.8925755,105540.0,105530.0,0.16428501]
[1749434134898,1.8925735,105540.0,105530.0,0.16428501]
[1749434138502,2.01002082,105540.0,105530.0,0.01734949]
[1749434139111,2.01002082,105540.0,105530.0,0.01714949]
[1749434139602,2.01002082,105540.0,105530.0,0.13550901]
[1749434139801,2.01002082,105540.0,105530.0,0.13570901]
[1749434140010,2.01002082,105540.0,105530.0,0.13470901]
[1749434140206,0.189425,105530.0,105520.0,0.42083538]
[1749434140400,0.69937232,105530.0,105520.0,0.31521837]
[1749434142111,0.69937232,105530.0,105520.0,0.3294865]
[1749434142304,0.69937232,105530.0,105520.0,0.3304865]
[1749434142609,0.77584196,105530.0,105510.0,0.04081124]
[1749434142811,0.77584196,105530.0,105470.0,0.8366381]
[1749434142812,0.0473735,105500.0,105470.0,0.8366381]
[1749434142999,0.1895328,105470.0,105460.0,0.13785499]
[1749434143206,0.1895328,105470.0,105460.0,0.0923]
[1749434143207,0.66115487,105470.0,105460.0,0.0923]
[1749434143501,0.60207095,105470.0,105460.0,0.0923]
[1749434143702,0.72082196,105470.0,105460.0,0.39929802]
[1749434143900,0.78458712,105470.0,105460.0,0.3820507]
[1749434144210,0.73166528,105470.0,105460.0,0.2873002]
[1749434144411,0.73166528,105470.0,105460.0,0.40574752]
[1749434144711,1.2099126,105470.0,105460.0,0.21094732]
[1749434144910,1.22597938,105470.0,105460.0,0.21194732]
[1749434145102,1.22597938,105470.0,105460.0,0.40049802]
[1749434145303,1.22597938,105470.0,105460.0,0.21112469]
[1749434145304,1.10853206,105470.0,105460.0,0.21112469]
[1749434145601,1.10853206,105470.0,105460.0,0.21212469]
[1749434145808,1.10853206,105470.0,105460.0,0.21112469]
[1749434146008,1.10853206,105470.0,105460.0,0.0935]
[1749434146400,1.10843958,105470.0,105460.0,0.0935]
[1749434147007,1.10843958,105470.0,105460.0,0.0933]
[1749434147311,1.10843958,105470.0,105460.0,0.0935]
[1749434147606,1.18294951,105470.0,105460.0,0.0935]
[1749434147804,1.30066555,105470.0,105460.0,0.0935]
[1749434148006,1.18304199,105470.0,105460.0,0.0935]
[1749434148209,0.75862668,105470.0,105460.0,0.0012]
[1749434148511,1.18316199,105470.0,105460.0,0.0012]
[1749434148706,1.18316199,105470.0,105460.0,0.0629]
[1749434148707,0.64100199,105470.0,105460.0,0.0629]
[1749434149008,1.18306951,105470.0,105460.0,0.0627]
[1749434149220,1.18306951,105470.0,105460.0,0.0629]
[1749434150007,0.64090951,105470.0,105460.0,0.0629]
[1749434150204,1.18350951,105470.0,105460.0,0.0629]
[1749434150408,1.18350951,105470.0,105460.0,0.0669566]
[1749434152005,1.3011342,105470.0,105460.0,0.0667566]
[1749434152217,1.41801492,105470.0,105460.0,0.0669566]
[1749434152407,1.41801492,105470.0,105460.0,0.0365566]
[1749434152606,1.41801492,105470.0,105460.0,0.0052566]
[1749434153011,1.45071492,105470.0,105460.0,0.0052566]
[1749434153418,1.45071492,105470.0,105460.0,0.01564885]
[1749434153611,1.33309023,105470.0,105460.0,0.01584885]
[1749434153911,1.45071492,105470.0,105460.0,0.01584885]
[1749434154318,1.4508074,105470.0,105460.0,0.01584885]
[1749434154515,1.45071492,105470.0,105460.0,0.01584687]
[1749434154810,1.45071492,105470.0,105460.0,0.02937]
[1749434155011,1.45071492,105470.0,105460.0,0.03333142]
[1749434155215,1.45071492,105470.0,105460.0,0.02936969]
[1749434155414,1.45071492,105470.0,105460.0,0.04392138]
[1749434155809,0.90811492,105470.0,105460.0,0.04392138]
[1749434156015,1.23631023,105470.0,105460.0,0.04392138]
[1749434156203,0.69239023,105470.0,105460.0,0.07754687]
[1749434156407,1.23639023,105470.0,105460.0,0.09209697]
[1749434156607,1.23639023,105470.0,105460.0,0.1057823]
[1749434156810,1.23639023,105470.0,105460.0,0.09101063]
[1749434157007,0.69239023,105470.0,105460.0,0.10581179]
[1749434157315,0.69239023,105470.0,105460.0,0.10579296]
[1749434157712,1.23631023,105470.0,105460.0,0.22337151]
[1749434157911,1.23640271,105470.0,105460.0,0.22336939]
[1749434158306,1.23640271,105470.0,105460.0,0.22338242]
[1749434158611,1.18492199,105470.0,105460.0,0.10566419]
[1749434158803,1.18492199,105470.0,105460.0,0.19936613]
[1749434159008,0.64100199,105470.0,105460.0,0.41280981]
[1749434159214,0.64100199,105470.0,105460.0,0.39953296]
[1749434159413,1.18480199,105470.0,105460.0,0.39953743]
[1749434159610,1.18480199,105470.0,105460.0,0.49435561]
[1749434159804,1.18480199,105470.0,105460.0,0.48373948]
[1749434160113,0.74420199,105470.0,105460.0,0.5891773]
[1749434160320,0.74420199,105470.0,105460.0,0.56476617]
[1749434160506,0.74420199,105470.0,105460.0,0.56376617]
[1749434160712,0.74420199,105470.0,105460.0,0.57855857]
[1749434160914,0.74420199,105470.0,105460.0,0.58918363]
[1749434161313,0.74420199,105470.0,105460.0,0.57155885]
[1749434161618,0.74420199,105470.0,105460.0,0.58918354]
[1749434161917,0.74420199,105470.0,105460.0,0.56376617]
[1749434162103,0.74420199,105470.0,105460.0,0.57829147]
[1749434162312,0.74420199,105470.0,105460.0,0.57439123]
[1749434162508,0.74420199,105470.0,105460.0,0.58991653]
[1749434162710,0.74420199,105470.0,105460.0,0.58891653]
[1749434163517,0.74420199,105470.0,105460.0,0.07753235]
[1749434163718,0.74420199,105470.0,105460.0,0.09203874]
[1749434163920,0.74420199,105470.0,105460.0,0.19496109]
[1749434164112,0.74420199,105470.0,105460.0,0.09204803]
[1749434164416,0.74420199,105470.0,105460.0,0.08146823]
[1749434165121,0.74420199,105470.0,105460.0,0.08147539]
[1749434165322,0.74420199,105470.0,105460.0,0.0669566]
[1749434165722,0.74420199,105470.0,105460.0,0.27102616]
[1749434165915,0.74420199,105470.0,105460.0,0.27102619]
[1749434166115,0.74420199,105470.0,105460.0,0.27102617]
[1749434166924,0.79579547,105470.0,105460.0,0.2565073]
[1749434167321,0.79579547,105470.0,105460.0,0.3885914]
[1749434167526,0.79579547,105470.0,105460.0,0.37413199]
[1749434167728,0.79579547,105470.0,105460.0,0.3885913]
[1749434167926,0.69259547,105470.0,105460.0,0.4885913]
[1749434168125,1.18692199,105470.0,105460.0,0.58340948]
[1749434168323,0.61814353,105470.0,105460.0,0.88030948]
[1749434168526,1.11265206,105470.0,105460.0,0.88030948]
[1749434168726,1.16430462,105470.0,105460.0,0.78031389]
[1749434168927,1.16430462,105470.0,105460.0,0.78031385]
[1749434169426,1.16433239,105470.0,105460.0,0.78031385]
[1749434169627,1.16433239,105470.0,105460.0,0.78033335]
[1749434170127,1.16433239,105470.0,105460.0,0.88033335]
[1749434170328,1.16433239,105470.0,105460.0,0.88033747]
[1749434170731,1.16433239,105470.0,105460.0,0.86585017]
[1749434170929,1.16433239,105470.0,105460.0,0.88033747]
[1749434171432,1.16433239,105470.0,105460.0,0.88037943]
[1749434171918,1.16433239,105470.0,105460.0,0.88037429]
[1749434172323,1.16433239,105470.0,105460.0,0.8802955]
[1749434172725,1.16433239,105470.0,105460.0,0.7802955]
[1749434173131,1.16433239,105470.0,105460.0,0.8802955]
[1749434173431,1.16433239,105470.0,105460.0,0.7802955]
[1749434173735,1.16433239,105470.0,105460.0,0.8802908]
[1749434173931,1.16433239,105470.0,105460.0,0.86585017]
[1749434174129,1.16433239,105470.0,105460.0,0.8802908]
[1749434174429,1.16433239,105470.0,105460.0,0.88029041]
[1749434174631,0.06783959,105470.0,105460.0,0.86585017]
[1749434174832,0.59757281,105470.0,105460.0,1.24109039]
[1749434175032,0.10481248,105470.0,105460.0,1.33590639]
[1749434175340,1.13386482,105490.0,105480.0,0.1895148]
[1749434175528,1.13386482,105490.0,105480.0,0.32157655]
[1749434175529,1.12405234,105490.0,105480.0,0.32157655]
[1749434175835,1.12405234,105490.0,105480.0,0.37223949]
[1749434175836,1.66989234,105490.0,105480.0,0.37223949]
[1749434176025,1.68438828,105490.0,105480.0,0.48149425]
[1749434176335,1.68438828,105490.0,105480.0,0.34943298]
[1749434176532,1.68438828,105490.0,105480.0,0.36386795]
[1749434176740,1.68738828,105490.0,105480.0,0.36386795]
[1749434177132,1.68738828,105490.0,105480.0,0.36375597]
[1749434177534,1.68738828,105490.0,105480.0,0.36375353]
[1749434177838,1.68738828,105490.0,105480.0,0.34943298]
[1749434178342,1.68738828,105490.0,105480.0,0.36385974]
[1749434179139,1.68738828,105490.0,105480.0,0.43808521]
[1749434179334,1.69388187,105490.0,105480.0,0.0002]
[1749434179542,1.91417867,105490.0,105480.0,0.0146225]
[1749434179738,1.94577867,105490.0,105480.0,0.01461999]
[1749434179931,0.1895148,105480.0,105470.0,0.3794779]
[1749434180131,0.5813148,105480.0,105470.0,0.39389803]
[1749434181041,0.5813148,105480.0,105470.0,0.31361785]
[1749434181042,0.6121148,105480.0,105470.0,0.31361785]
[1749434181237,0.6121148,105480.0,105470.0,0.61051804]
[1749434181437,0.6121148,105480.0,105470.0,0.31132034]
[1749434181438,0.72973949,105480.0,105470.0,0.31132034]
[1749434181637,0.6121148,105480.0,105470.0,0.3113205]
[1749434181835,0.66014161,105480.0,105470.0,0.3113205]
[1749434182034,0.66014161,105480.0,105470.0,0.31131993]
[1749434182339,0.66114161,105480.0,105470.0,0.31131993]
[1749434182538,0.66114161,105480.0,105470.0,0.31151993]
[1749434182841,0.66114431,105480.0,105470.0,0.31151656]
[1749434183239,0.66114431,105480.0,105470.0,0.31151657]
[1749434184139,0.66114431,105480.0,105470.0,0.31152635]
[1749434184545,0.778769,105480.0,105470.0,0.2971]
[1749434184748,0.778769,105480.0,105470.0,0.31152638]
[1749434185246,0.77875083,105480.0,105470.0,0.31152638]
[1749434186038,0.77875083,105480.0,105470.0,0.2971]
[1749434186242,0.77875083,105480.0,105470.0,0.31152667]
[1749434186545,0.77875083,105480.0,105470.0,0.31132667]
[1749434186848,0.77875083,105480.0,105470.0,0.31132677]
[1749434187144,0.77875083,105480.0,105470.0,0.01462677]
[1749434187841,0.77875083,105480.0,105470.0,0.01475937]
[1749434188140,0.77875083,105480.0,105470.0,0.0002]
[1749434188843,0.77875083,105480.0,105470.0,0.01475937]
[1749434189541,0.77875083,105480.0,105470.0,0.0002]
[1749434189742,0.77875083,105480.0,105470.0,0.01476524]
[1749434189942,0.77875083,105480.0,105470.0,0.0002]
[1749434190433,0.77875083,105480.0,105470.0,0.01476524]
[1749434191642,0.77875083,105480.0,105470.0,0.0002]
[1749434191839,0.77875083,105480.0,105470.0,0.0147651]
[1749434192840,0.77875083,105480.0,105470.0,0.0002]
[1749434193348,0.58923603,105480.0,105450.0,0.71037319]
[1749434193648,0.5503507,105460.0,105450.0,0.70735584]
[1749434194041,0.5503507,105460.0,105450.0,0.69787471]
[1749434194254,0.5503507,105460.0,105450.0,0.69787483]
[1749434194648,0.5503507,105460.0,105450.0,0.69987736]
[1749434195050,0.5503507,105460.0,105450.0,0.6852685]
[1749434195349,0.5503507,105460.0,105450.0,0.69787738]
[1749434195552,0.5503507,105460.0,105450.0,0.70287738]
[1749434195743,0.5503507,105460.0,105450.0,0.51330888]
[1749434195945,0.5503507,105460.0,105450.0,0.70287758]
[1749434196146,0.5503507,105460.0,105450.0,0.51330888]
[1749434196547,0.5503507,105460.0,105450.0,0.70287758]
[1749434196848,0.5503507,105460.0,105450.0,0.51330622]
[1749434197042,0.5819507,105460.0,105450.0,0.4987]
[1749434197237,0.5819507,105460.0,105450.0,0.51330622]
[1749434197446,0.5819507,105460.0,105450.0,0.4987]
[1749434197646,0.6139507,105460.0,105450.0,0.51333032]
[1749434197844,0.6139507,105460.0,105450.0,0.48273032]
[1749434198043,0.6139507,105460.0,105450.0,0.48272938]
[1749434198542,0.6139507,105460.0,105450.0,0.5008]
[1749434198749,0.6139507,105460.0,105450.0,0.51542923]
[1749434198949,0.6139507,105460.0,105450.0,0.2039]
[1749434199454,0.6139507,105460.0,105450.0,0.21852923]
[1749434200044,0.6139507,105460.0,105450.0,0.15252726]
[1749434200245,0.6139507,105460.0,105450.0,0.1658991]
[1749434200444,0.6139507,105460.0,105450.0,0.15252738]
[1749434200655,0.6139507,105460.0,105450.0,0.16592114]
[1749434201554,0.6139507,105460.0,105450.0,0.16591771]
[1749434201754,0.6139507,105460.0,105450.0,0.15252396]
[1749434201951,0.6139507,105460.0,105450.0,0.1525218]
[1749434202154,0.6139507,105460.0,105450.0,0.16591221]
[1749434202550,0.6139507,105460.0,105450.0,0.3274687]
[1749434202746,0.6139507,105460.0,105450.0,0.38845167]